bitfinex/quotes_BTCUSD_20240730
["timestamp","ask_amount","ask_price","bid_price","bid_amount"]
[1722318413904,1.42123562,66760.0,66759.0,0.000913]
[1722318414135,1.36787556,66760.0,66759.0,0.000913]
[1722318414368,1.46867933,66760.0,66759.0,0.000913]
[1722318414477,1.50262376,66760.0,66759.0,0.000913]
[1722318414678,1.35871549,66760.0,66759.0,0.000913]
[1722318415082,1.28732319,66760.0,66759.0,0.000913]
[1722318415511,1.33466271,66760.0,66759.0,0.000913]
[1722318415710,1.22434722,66760.0,66759.0,0.000913]
[1722318416336,1.2718259,66760.0,66759.0,0.000913]
[1722318416895,0.97585934,66760.0,66759.0,0.000913]
[1722318417223,0.15259381,66760.0,66759.0,0.000913]
[1722318417427,0.15259381,66760.0,66759.0,0.120747]
[1722318417428,0.0856663,66760.0,66759.0,0.120747]
[1722318417690,0.001,66760.0,66759.0,0.000913]
[1722318418147,0.04461998,66763.0,66759.0,0.000913]
[1722318418365,0.11983,66761.0,66759.0,0.000913]
[1722318418567,0.64059388,66760.0,66759.0,0.000913]
[1722318418763,0.83563784,66760.0,66759.0,0.000913]
[1722318419010,0.59597384,66760.0,66759.0,0.000913]
[1722318419214,0.51012904,66760.0,66759.0,0.002913]
[1722318419641,0.51012904,66760.0,66759.0,0.006913]
[1722318420086,0.27046504,66760.0,66759.0,0.006913]
[1722318420282,0.51012904,66760.0,66759.0,0.006913]
[1722318420661,0.51012904,66760.0,66759.0,0.000913]
[1722318420861,1.26226737,66760.0,66759.0,0.000913]
[1722318421063,1.38034168,66760.0,66759.0,0.000913]
[1722318421266,1.42688554,66760.0,66759.0,0.000913]
[1722318421494,1.42588554,66760.0,66759.0,0.000913]
[1722318421725,1.45012849,66760.0,66759.0,0.000913]
[1722318421924,1.45112849,66760.0,66759.0,0.000913]
[1722318422153,1.55065559,66760.0,66759.0,0.000913]
[1722318422358,1.56065559,66760.0,66759.0,0.000913]
[1722318422560,1.58065559,66760.0,66759.0,0.000913]
[1722318422772,1.58165559,66760.0,66759.0,0.000913]
[1722318423009,1.60469835,66760.0,66759.0,0.000913]
[1722318423211,1.57165559,66760.0,66759.0,0.000913]
[1722318423440,1.82131959,66760.0,66759.0,0.000913]
[1722318424041,1.82136892,66760.0,66759.0,0.000913]
[1722318424243,1.69064168,66760.0,66759.0,0.000913]
[1722318424455,1.50690455,66760.0,66759.0,0.000913]
[1722318425375,1.26724055,66760.0,66759.0,0.000913]
[1722318427047,1.02757655,66760.0,66759.0,0.000913]
[1722318427266,0.35725536,66760.0,66759.0,0.000913]
[1722318427586,0.25124207,66760.0,66759.0,0.000913]
[1722318427735,0.002,66760.0,66759.0,0.000913]
[1722318427958,0.121832,66760.0,66759.0,0.000913]
[1722318428164,0.51452302,66760.0,66759.0,0.000913]
[1722318428323,0.68725563,66760.0,66759.0,0.000913]
[1722318428524,0.77649748,66760.0,66759.0,0.000913]
[1722318428727,0.93524275,66760.0,66759.0,0.000913]
[1722318429409,1.37542923,66760.0,66759.0,0.000913]
[1722318429601,1.39949758,66760.0,66759.0,0.000913]
[1722318429806,1.38949758,66760.0,66759.0,0.000913]
[1722318430043,1.39949758,66760.0,66759.0,0.000913]
[1722318430539,1.38851012,66760.0,66759.0,0.000913]
[1722318430790,1.29115604,66760.0,66759.0,0.000913]
[1722318431171,1.26807515,66760.0,66759.0,0.000913]
[1722318431359,1.4020647,66760.0,66759.0,0.000913]
[1722318432289,1.30410217,66760.0,66759.0,0.000913]
[1722318432632,1.44479649,66760.0,66759.0,0.000913]
[1722318432826,1.45479649,66760.0,66759.0,0.000913]
[1722318433283,1.44479649,66760.0,66759.0,0.000913]
[1722318433486,1.29410217,66760.0,66759.0,0.000913]
[1722318433685,1.29473108,66760.0,66759.0,0.000913]
[1722318433855,1.26969368,66760.0,66759.0,0.000913]
[1722318434057,1.22045267,66760.0,66759.0,0.000913]
[1722318435042,1.40390561,66760.0,66759.0,0.000913]
[1722318435242,1.54648436,66760.0,66759.0,0.000913]
[1722318435448,1.47142104,66760.0,66759.0,0.000913]
[1722318435683,1.86203324,66760.0,66759.0,0.000913]
[1722318435884,1.45142104,66760.0,66759.0,0.000913]
[1722318436080,1.47142104,66760.0,66759.0,0.000913]
[1722318436482,1.45142104,66760.0,66759.0,0.000913]
[1722318436682,1.30884229,66760.0,66759.0,0.000913]
[1722318436897,1.23045267,66760.0,66759.0,0.000913]
[1722318437250,1.3056087,66760.0,66759.0,0.000913]
[1722318437383,1.30628802,66760.0,66759.0,0.000913]
[1722318437793,1.29628802,66760.0,66759.0,0.000913]
[1722318438425,1.21598802,66760.0,66759.0,0.000913]
[1722318438830,0.97632402,66760.0,66759.0,0.000913]
[1722318439507,0.78192543,66760.0,66759.0,0.000913]
[1722318439682,0.63129239,66760.0,66759.0,0.000913]
[1722318439887,0.49707385,66760.0,66759.0,0.000913]
[1722318440100,0.63129995,66760.0,66759.0,0.000913]
[1722318440255,0.66161129,66760.0,66759.0,0.000913]
[1722318440462,0.49707385,66760.0,66759.0,0.000913]
[1722318440877,0.13757785,66760.0,66759.0,0.000913]
[1722318441091,0.20792763,66760.0,66759.0,0.000913]
[1722318441293,0.25758535,66760.0,66759.0,0.000913]
[1722318441492,0.49724935,66760.0,66759.0,0.000913]
[1722318441739,0.63147545,66760.0,66759.0,0.000913]
[1722318441994,0.49724935,66760.0,66759.0,0.000913]
[1722318442232,0.39181145,66760.0,66759.0,0.000913]
[1722318442432,1.02177249,66760.0,66759.0,0.000913]
[1722318442639,1.02799745,66760.0,66759.0,0.000913]
[1722318442994,1.26766145,66760.0,66759.0,0.000913]
[1722318443225,1.42056145,66760.0,66759.0,0.000913]
[1722318443467,1.41056145,66760.0,66759.0,0.000913]
[1722318443678,1.30054548,66760.0,66759.0,0.000913]
[1722318443894,1.30203968,66760.0,66759.0,0.000913]
[1722318444486,1.30054548,66760.0,66759.0,0.000913]
[1722318445144,1.15886994,66760.0,66759.0,0.000913]
[1722318445320,0.91798148,66760.0,66759.0,0.000913]
[1722318446103,0.22252115,66760.0,66759.0,0.000913]
[1722318446301,0.44759163,66760.0,66759.0,0.000913]
[1722318446577,0.58203769,66760.0,66759.0,0.000913]
[1722318446906,0.5820383,66760.0,66759.0,0.000913]
[1722318447148,0.44759163,66760.0,66759.0,0.000913]
[1722318447462,0.53003532,66760.0,66759.0,0.000913]
[1722318447933,0.68128782,66760.0,66759.0,0.000913]
[1722318448102,0.53003532,66760.0,66759.0,0.000913]
[1722318448307,0.68128782,66760.0,66759.0,0.000913]
[1722318448514,0.67667204,66760.0,66759.0,0.000913]
[1722318449274,0.52539454,66760.0,66759.0,0.000913]
[1722318449469,0.44759163,66760.0,66759.0,0.000913]
[1722318449679,0.52530237,66760.0,66759.0,0.000913]
[1722318450199,1.29671217,66760.0,66759.0,0.000913]
[1722318450745,1.39072926,66760.0,66759.0,0.000913]
[1722318451862,1.66039326,66760.0,66759.0,0.000913]
[1722318452069,1.40072926,66760.0,66759.0,0.000913]
[1722318452732,1.39551992,66760.0,66759.0,0.000913]
[1722318453592,1.42435274,66760.0,66759.0,0.000913]
[1722318453956,1.66401674,66760.0,66759.0,0.000913]
[1722318454368,2.08935949,66760.0,66759.0,0.00082171]
[1722318454911,2.08935949,66760.0,66735.0,0.03004]
[1722318454912,0.599375,66736.0,66735.0,0.03004]
[1722318455209,0.9459915,66736.0,66735.0,0.03004]
[1722318455400,0.5863665,66736.0,66735.0,0.03004]
[1722318455546,0.85687454,66736.0,66735.0,0.03004]
[1722318455743,1.09662454,66736.0,66735.0,0.03004]
[1722318455942,0.85676952,66736.0,66735.0,0.03004]
[1722318456169,0.65629117,66736.0,66735.0,0.03004]
[1722318456427,0.59635367,66736.0,66735.0,0.03004]
[1722318456758,0.83610467,66736.0,66735.0,0.03004]
[1722318457357,0.83610467,66736.0,66735.0,0.04404]
[1722318458056,0.83610467,66736.0,66735.0,0.05804]
[1722318458632,0.95896071,66736.0,66735.0,0.05804]
[1722318458794,1.26221171,66736.0,66735.0,0.05804]
[1722318458993,1.31128312,66736.0,66735.0,0.05804]
[1722318459216,1.26221171,66736.0,66735.0,0.05804]
[1722318459393,1.46229949,66736.0,66735.0,0.05804]
[1722318459601,1.00802619,66736.0,66735.0,0.05804]
[1722318459824,0.95896071,66736.0,66735.0,0.05804]
[1722318460033,1.00794458,66736.0,66735.0,0.05804]
[1722318460232,1.19871171,66736.0,66735.0,0.05804]
[1722318460593,1.24769439,66736.0,66735.0,0.05804]
[1722318460793,0.95896071,66736.0,66735.0,0.05804]
[1722318461067,0.08609563,66736.0,66735.0,0.05804]
[1722318461268,0.00899583,66745.0,66735.0,0.05804]
[1722318461269,0.13418757,66741.0,66735.0,0.19944]
[1722318461466,0.11182262,66736.0,66735.0,0.319317]
[1722318461665,0.08366157,66740.0,66736.0,0.119875]
[1722318461666,0.0671003,66737.0,66736.0,0.119875]
[1722318461874,0.0671003,66737.0,66736.0,0.359625]
[1722318462024,0.0671003,66737.0,66736.0,0.599375]
[1722318462236,0.0671003,66737.0,66736.0,0.119875]
[1722318462468,0.0014942,66738.0,66737.0,0.0768]
[1722318462687,0.10446252,66738.0,66737.0,0.0768]
[1722318463015,0.119871,66738.0,66737.0,0.0768]
[1722318463163,0.08442692,66738.0,66737.0,0.0768]
[1722318463582,0.08293272,66738.0,66737.0,0.196673]
[1722318463785,0.08293272,66738.0,66737.0,0.0908]
[1722318463786,0.11177853,66738.0,66737.0,0.0908]
[1722318463990,0.11177853,66738.0,66737.0,0.210673]
[1722318464333,0.08943605,66739.0,66738.0,0.119871]
[1722318464451,0.09093025,66740.0,66739.0,0.119869]
[1722318465055,0.08943605,66740.0,66739.0,0.119869]
[1722318465727,0.08945552,66740.0,66739.0,0.119869]
[1722318465957,0.08945552,66740.0,66739.0,0.014]
[1722318466196,0.11181238,66741.0,66739.0,0.014]
[1722318466391,0.0014942,66740.0,66739.0,0.014]
[1722318467287,0.11181238,66741.0,66739.0,0.014]
[1722318467517,0.11181238,66741.0,66739.0,0.028]
[1722318467645,0.11181238,66741.0,66739.0,0.014]
[1722318467841,0.11181238,66741.0,66738.0,0.119871]
[1722318468046,0.11181238,66741.0,66739.0,0.014]
[1722318468272,0.0014942,66740.0,66739.0,0.028]
[1722318468869,0.0014942,66740.0,66739.0,0.014]
[1722318469068,0.11182197,66741.0,66739.0,0.014]
[1722318469269,0.0014942,66740.0,66739.0,0.014]
[1722318469466,0.0014942,66740.0,66739.0,0.0646]
[1722318469671,0.11182197,66741.0,66739.0,0.1471]
[1722318469879,0.08944533,66740.0,66739.0,0.1471]
[1722318470748,0.08944533,66740.0,66739.0,0.280969]
[1722318470964,0.06706531,66741.0,66740.0,0.119868]
[1722318471184,0.06706531,66743.0,66741.0,0.0606]
[1722318471390,0.04471767,66743.0,66742.0,0.442093]
[1722318471587,0.0014942,66743.0,66742.0,0.442093]
[1722318471738,0.08944533,66743.0,66742.0,0.202364]
[1722318472060,0.15112561,66743.0,66742.0,0.0825]
[1722318472219,0.08394044,66743.0,66742.0,0.0825]
[1722318472418,0.27388237,66743.0,66742.0,0.0825]
[1722318473019,0.27388237,66743.0,66742.0,0.0965]
[1722318473821,0.27388237,66743.0,66742.0,0.1105]
[1722318474214,0.16207138,66743.0,66742.0,0.1105]
[1722318475584,0.28193338,66743.0,66742.0,0.028]
[1722318476485,0.19581018,66743.0,66742.0,0.028]
[1722318476709,0.19582552,66743.0,66742.0,0.028]
[1722318477165,0.0895067,66743.0,66742.0,0.028]
[1722318477358,0.19525252,66743.0,66742.0,0.028]
[1722318477610,0.19525003,66743.0,66742.0,0.028]
[1722318477766,0.08336744,66743.0,66742.0,0.028]
[1722318478556,0.14108709,66743.0,66742.0,0.028]
[1722318478793,0.20322944,66743.0,66742.0,0.028]
[1722318478990,0.44295444,66743.0,66742.0,0.028]
[1722318479172,0.68267944,66743.0,66742.0,0.028]
[1722318479920,0.68267944,66743.0,66742.0,0.014]
[1722318480124,0.55676865,66743.0,66742.0,0.014]
[1722318480455,0.55676865,66743.0,66742.0,0.023]
[1722318480802,0.94712669,66743.0,66742.0,0.023]
[1722318481012,0.94712669,66743.0,66742.0,0.009]
[1722318481466,1.0814055,66743.0,66742.0,0.02]
[1722318481673,0.94712669,66743.0,66742.0,0.02]
[1722318481804,0.94712669,66743.0,66742.0,0.009]
[1722318482151,0.94712669,66743.0,66738.0,0.0825]
[1722318482152,0.119869,66739.0,66738.0,0.0825]
[1722318482350,0.20323644,66739.0,66738.0,0.0825]
[1722318482955,0.30914366,66739.0,66738.0,0.0825]
[1722318483337,0.42107416,66739.0,66738.0,0.0965]
[1722318483567,0.54888266,66739.0,66738.0,0.0965]
[1722318483767,0.20323644,66739.0,66738.0,0.0965]
[1722318483971,0.3151743,66739.0,66738.0,0.0965]
[1722318484176,0.20323644,66739.0,66738.0,0.0965]
[1722318484374,0.31517719,66739.0,66738.0,0.0965]
[1722318484575,0.31518384,66739.0,66738.0,0.1105]
[1722318484830,0.19531484,66739.0,66738.0,0.1105]
[1722318485026,0.20473064,66739.0,66738.0,0.1105]
[1722318485236,0.31667804,66739.0,66738.0,0.1105]
[1722318485551,0.31518384,66739.0,66738.0,0.1105]
[1722318486112,0.08336744,66739.0,66738.0,0.1105]
[1722318486313,0.19535544,66739.0,66738.0,0.1105]
[1722318487131,0.20323644,66739.0,66738.0,0.1105]
[1722318488863,0.20323644,66739.0,66738.0,0.111413]
[1722318489250,0.11200713,66743.0,66738.0,0.42774604]
[1722318489488,0.04480172,66749.0,66743.0,0.1486]
[1722318489706,0.0896057,66752.0,66750.0,0.1417]
[1722318489707,0.04480172,66752.0,66750.0,0.1417]
[1722318489872,0.04480172,66753.0,66752.0,0.1417]
[1722318490074,0.4491387,66753.0,66752.0,0.1417]
[1722318490389,0.16922587,66753.0,66752.0,0.1417]
[1722318490592,0.23968,66756.0,66752.0,0.1417]
[1722318490798,0.00083,66759.0,66752.0,0.1417]
[1722318490799,0.62200658,66753.0,66752.0,0.1417]
[1722318491002,0.62200658,66753.0,66743.0,0.014]
[1722318491003,0.599302,66744.0,66743.0,0.014]
[1722318491351,0.40723551,66744.0,66738.0,0.000913]
[1722318491577,0.359608,66739.0,66738.0,0.000913]
[1722318491775,1.16334572,66739.0,66738.0,0.009913]
[1722318491989,1.16334572,66739.0,66701.0,0.27534716]
[1722318491990,0.119896,66724.0,66723.0,0.0766]
[1722318492187,0.19917075,66724.0,66723.0,0.0766]
[1722318492418,0.12486008,66724.0,66723.0,0.0766]
[1722318492779,0.07927475,66724.0,66723.0,0.0766]
[1722318492977,0.10230459,66724.0,66723.0,0.0766]
[1722318493181,0.14972776,66724.0,66723.0,0.0766]
[1722318493337,0.14972776,66724.0,66718.0,0.1456]
[1722318493338,0.30075145,66724.0,66718.0,0.1456]
[1722318493539,0.72615188,66724.0,66723.0,0.009]
[1722318493758,1.08496593,66724.0,66723.0,0.009]
[1722318494332,1.32475893,66724.0,66723.0,0.009]
[1722318494723,1.32475893,66724.0,66723.0,0.021]
[1722318494864,0.239813,66719.0,66714.0,0.083]
[1722318495047,0.119913,66715.0,66714.0,0.083]
[1722318495248,0.32557398,66715.0,66714.0,0.083]
[1722318495765,0.56539998,66715.0,66714.0,0.083]
[1722318495966,0.56539998,66715.0,66665.0,0.16596155]
[1722318495967,0.119927,66707.0,66706.0,0.0815]
[1722318496176,0.119927,66707.0,66694.0,0.009284]
[1722318496177,0.13207702,66707.0,66698.0,0.1406]
[1722318496430,0.15089996,66712.0,66699.0,0.1406]
[1722318496431,0.04466016,66702.0,66699.0,0.1406]
[1722318496593,0.04466016,66702.0,66701.0,0.0649]
[1722318496957,0.04466246,66705.0,66704.0,0.061]
[1722318497269,0.239818,66718.0,66704.0,0.061]
[1722318497270,0.04466745,66712.0,66711.0,0.1394]
[1722318497474,0.39051268,66729.0,66704.0,0.2359802]
[1722318497475,0.08932366,66713.0,66708.0,0.0784]
[1722318497696,0.239793,66725.0,66704.0,0.25063304]
[1722318497697,0.06698325,66712.0,66710.0,0.0784]
[1722318497912,0.04465658,66712.0,66710.0,0.39003304]
[1722318498117,0.04465658,66712.0,66711.0,0.1598]
[1722318498325,0.06698325,66712.0,66711.0,0.1368]
[1722318498527,0.08932366,66712.0,66711.0,0.1368]
[1722318498770,0.08932366,66712.0,66692.0,0.009284]
[1722318498771,0.239857,66707.0,66692.0,0.009284]
[1722318498976,0.239857,66707.0,66696.0,0.0767]
[1722318498977,0.04465507,66703.0,66696.0,0.0767]
[1722318499180,0.119933,66704.0,66696.0,0.0767]
[1722318499181,0.04465507,66702.0,66696.0,0.0767]
[1722318499365,0.119945,66697.0,66696.0,0.0767]
[1722318499582,0.01646001,66697.0,66696.0,0.0767]
[1722318499736,0.119945,66697.0,66696.0,0.0767]
[1722318499955,0.359835,66697.0,66696.0,0.0767]
[1722318500898,0.360835,66697.0,66696.0,0.0827]
[1722318501419,0.360835,66697.0,66696.0,0.01]
[1722318501420,0.40541829,66697.0,66696.0,0.01]
[1722318501867,0.64530829,66697.0,66696.0,0.006]
[1722318502071,0.360835,66697.0,66696.0,0.016]
[1722318502271,0.120945,66697.0,66696.0,0.016]
[1722318502632,0.360835,66697.0,66696.0,0.016]
[1722318503332,0.600725,66697.0,66696.0,0.016]
[1722318503761,0.360835,66697.0,66696.0,0.016]
[1722318503931,0.120945,66697.0,66696.0,0.158]
[1722318504167,0.001,66697.0,66696.0,0.158]
[1722318504639,0.120945,66697.0,66696.0,0.158]
[1722318505459,0.360835,66697.0,66696.0,0.158]
[1722318506755,0.600725,66697.0,66696.0,0.158]
[1722318507952,0.6847853,66697.0,66696.0,0.158]
[1722318508361,0.9246753,66697.0,66696.0,0.158]
[1722318509043,0.9246753,66697.0,66696.0,0.0934]
[1722318509981,0.9246753,66697.0,66696.0,0.016]
[1722318510181,0.840615,66697.0,66696.0,0.156]
[1722318510382,0.840615,66697.0,66696.0,0.016]
[1722318512244,0.84043466,66697.0,66696.0,0.016]
[1722318516487,0.71967,66697.0,66696.0,0.016]
[1722318516704,0.839615,66697.0,66696.0,0.016]
[1722318520672,0.91441287,66697.0,66696.0,0.016]
[1722318522096,0.91441287,66697.0,66696.0,0.016924]
[1722318522298,0.91525287,66697.0,66696.0,0.016924]
[1722318525325,1.20543303,66697.0,66696.0,0.016924]
[1722318525526,1.99324607,66697.0,66696.0,0.016924]
[1722318525749,2.2644553,66697.0,66696.0,0.016924]
[1722318525949,2.28669532,66697.0,66696.0,0.016924]
[1722318526150,2.28669532,66697.0,66692.0,0.009284]
[1722318526151,0.03,66693.0,66692.0,0.009284]
[1722318526352,0.359943,66677.0,66665.0,0.1445]
[1722318526593,0.8754252,66677.0,66665.0,0.1445]
[1722318526749,1.3553492,66677.0,66665.0,0.1445]
[1722318528253,1.3553492,66677.0,66676.0,0.006973]
[1722318528479,1.50604352,66677.0,66676.0,0.006973]
[1722318528830,1.51604352,66677.0,66676.0,0.006973]
[1722318529267,1.5176459,66677.0,66676.0,0.006973]
[1722318529469,1.5076459,66677.0,66676.0,0.006973]
[1722318529896,1.7576079,66677.0,66676.0,0.006973]
[1722318530300,1.8576079,66677.0,66676.0,0.006973]
[1722318531171,1.95295506,66677.0,66676.0,0.006973]
[1722318531990,2.23475473,66677.0,66676.0,0.006973]
[1722318532403,2.18306306,66677.0,66676.0,0.006973]
[1722318532628,2.24907054,66677.0,66676.0,0.006973]
[1722318532935,2.24907054,66677.0,66676.0,0.004973]
[1722318533281,2.23189537,66677.0,66676.0,0.005973]
[1722318533685,2.21789537,66677.0,66676.0,0.005973]
[1722318534106,2.23189537,66677.0,66676.0,0.005973]
[1722318534664,2.18772338,66677.0,66676.0,0.005973]
[1722318535196,2.14588571,66677.0,66676.0,0.005973]
[1722318535597,2.09387823,66677.0,66676.0,0.005973]
[1722318535823,2.14599902,66677.0,66676.0,0.005973]
[1722318536428,2.21269615,66677.0,66676.0,0.005973]
[1722318537216,2.23492853,66677.0,66676.0,0.005973]
[1722318538256,1.94787469,66677.0,66676.0,0.005973]
[1722318538460,1.95020901,66677.0,66676.0,0.005973]
[1722318538668,1.52955269,66677.0,66676.0,0.005973]
[1722318538871,0.387943,66677.0,66676.0,0.081073]
[1722318539077,0.028,66677.0,66676.0,0.145973]
[1722318540066,0.119973,66682.0,66676.0,0.004973]
[1722318540302,0.239935,66685.0,66676.0,0.004973]
[1722318540303,0.239937,66684.0,66678.0,0.1458]
[1722318540502,0.239937,66684.0,66678.0,0.1318]
[1722318540694,0.119976,66680.0,66678.0,0.1318]
[1722318541307,0.239944,66682.0,66678.0,0.1318]
[1722318541308,0.119977,66679.0,66678.0,0.1318]
[1722318541882,0.119977,66679.0,66678.0,0.1358]
[1722318542080,0.0014942,66683.0,66678.0,0.1358]
[1722318542284,0.0014942,66683.0,66679.0,0.0791]
[1722318542504,0.0014942,66683.0,66680.0,0.119975]
[1722318542710,0.0014942,66683.0,66679.0,0.0791]
[1722318542911,0.0014942,66683.0,66679.0,0.199077]
[1722318543133,0.0014942,66683.0,66679.0,0.0791]
[1722318543537,0.119969,66684.0,66680.0,0.064]
[1722318544165,0.119964,66687.0,66680.0,0.064]
[1722318544368,0.4657,66689.0,66683.0,0.0763]
[1722318544369,0.119962,66688.0,66683.0,0.0763]
[1722318544573,0.119963,66687.0,66683.0,0.0763]
[1722318544971,0.002,66684.0,66683.0,0.0763]
[1722318545484,0.001,66684.0,66683.0,0.0763]
[1722318545655,0.001,66684.0,66683.0,0.19927]
[1722318546257,0.001,66684.0,66683.0,0.0793]
[1722318546604,0.119961,66688.0,66683.0,0.0793]
[1722318546809,0.119964,66687.0,66683.0,0.0793]
[1722318547033,0.119964,66687.0,66683.0,0.0763]
[1722318547439,0.001,66684.0,66683.0,0.0833]
[1722318547839,0.00084,66697.0,66684.0,0.065]
[1722318548044,0.00084,66697.0,66696.0,0.1405]
[1722318548800,0.120785,66697.0,66696.0,0.1405]
[1722318548952,0.120785,66697.0,66687.0,0.239923]
[1722318548953,0.119961,66688.0,66687.0,0.0761]
[1722318549158,0.119958,66690.0,66689.0,0.0761]
[1722318549363,0.359874,66690.0,66689.0,0.0761]
[1722318550304,0.359874,66690.0,66689.0,0.0811]
[1722318550305,0.59979,66690.0,66689.0,0.0811]
[1722318551315,0.59979,66690.0,66689.0,0.0861]
[1722318551526,0.99033904,66690.0,66689.0,0.01]
[1722318551732,1.06401739,66690.0,66689.0,0.01]
[1722318551940,1.21471171,66690.0,66689.0,0.01]
[1722318552075,1.01935241,66690.0,66689.0,0.01]
[1722318552478,0.75042304,66690.0,66689.0,0.01]
[1722318552678,0.82409257,66690.0,66689.0,0.01]
[1722318553243,0.86864927,66690.0,66689.0,0.01]
[1722318555619,0.71801623,66690.0,66689.0,0.01]
[1722318557358,0.67345953,66690.0,66689.0,0.01]
[1722318559276,0.74027379,66690.0,66689.0,0.01]
[1722318559511,0.67345953,66690.0,66689.0,0.01]
[1722318559914,0.43354353,66690.0,66689.0,0.01]
[1722318560149,0.119958,66690.0,66689.0,0.01]
[1722318560484,0.359874,66690.0,66689.0,0.01]
[1722318560663,0.59979,66690.0,66689.0,0.01]
[1722318560897,0.67981535,66690.0,66689.0,0.01]
[1722318561099,0.72436514,66690.0,66689.0,0.01]
[1722318561572,0.79478122,66690.0,66689.0,0.01]
[1722318563151,0.67020608,66690.0,66689.0,0.01]
[1722318565201,0.73704169,66690.0,66689.0,0.01]
[1722318566062,0.67020608,66690.0,66689.0,0.01]
[1722318566218,0.73704169,66690.0,66689.0,0.01]
[1722318566420,1.06075512,66690.0,66689.0,0.01]
[1722318566620,1.62297933,66690.0,66689.0,0.01]
[1722318566880,1.74297933,66690.0,66689.0,0.01]
[1722318567058,2.06599351,66690.0,66689.0,0.01]
[1722318567672,1.82607751,66690.0,66689.0,0.01]
[1722318567870,1.80607751,66690.0,66689.0,0.005]
[1722318568214,0.599905,66677.0,66672.0,0.009284]
[1722318568348,0.86966707,66677.0,66672.0,0.009284]
[1722318568878,0.93645832,66677.0,66672.0,0.009284]
[1722318569497,0.93647115,66677.0,66672.0,0.009284]
[1722318569700,0.23911003,66677.0,66676.0,0.155373]
[1722318569855,0.2349349,66677.0,66676.0,0.155373]
[1722318570057,0.19039708,66677.0,66676.0,0.155373]
[1722318570260,0.23493825,66677.0,66676.0,0.155373]
[1722318570910,0.47490025,66677.0,66676.0,0.155373]
[1722318571111,0.11495725,66677.0,66676.0,0.155373]
[1722318571313,0.23493825,66677.0,66676.0,0.160373]
[1722318571519,0.11495725,66677.0,66676.0,0.160373]
[1722318571659,0.07041608,66677.0,66676.0,0.160373]
[1722318572687,0.19039708,66677.0,66676.0,0.160373]
[1722318573459,0.23493825,66677.0,66676.0,0.160373]
[1722318573616,0.57310988,66677.0,66676.0,0.160373]
[1722318574217,0.81307188,66677.0,66676.0,0.094373]
[1722318574423,0.76853071,66677.0,66676.0,0.094373]
[1722318574631,1.07530446,66677.0,66676.0,0.014973]
[1722318574833,1.31908989,66677.0,66676.0,0.014973]
[1722318575030,1.34893697,66677.0,66676.0,0.014973]
[1722318575238,1.20773697,66677.0,66676.0,0.014973]
[1722318575649,0.86956534,66677.0,66676.0,0.014973]
[1722318575842,0.91008404,66677.0,66676.0,0.014973]
[1722318576063,0.91008404,66677.0,66676.0,0.009973]
[1722318576270,0.93236468,66677.0,66676.0,0.009973]
[1722318576469,0.93936468,66677.0,66676.0,0.010973]
[1722318576819,1.15076287,66677.0,66676.0,0.009973]
[1722318576991,0.91080087,66677.0,66676.0,0.009973]
[1722318577242,1.02222865,66677.0,66676.0,0.009973]
[1722318577432,0.91104931,66677.0,66676.0,0.004973]
[1722318577711,0.91104733,66677.0,66676.0,0.004973]
[1722318577922,0.91104733,66677.0,66676.0,0.005973]
[1722318577923,1.15400933,66677.0,66676.0,0.005973]
[1722318578292,1.15100933,66677.0,66676.0,0.004973]
[1722318578615,0.91504733,66677.0,66676.0,0.004973]
[1722318578862,0.91804733,66677.0,66676.0,0.004973]
[1722318579066,1.22960933,66677.0,66676.0,0.004973]
[1722318579437,1.22960933,66677.0,66676.0,0.005973]
[1722318579438,1.23260933,66677.0,66676.0,0.005973]
[1722318579655,1.18345108,66677.0,66676.0,0.005973]
[1722318579799,1.2323895,66677.0,66676.0,0.005973]
[1722318580232,1.3661819,66677.0,66676.0,0.005973]
[1722318580460,1.4304819,66677.0,66676.0,0.005973]
[1722318580881,1.4334819,66677.0,66676.0,0.005973]
[1722318581258,1.31694694,66677.0,66676.0,0.005973]
[1722318582245,1.18315461,66677.0,66676.0,0.005973]
[1722318583074,1.18340004,66677.0,66676.0,0.005973]
[1722318583299,1.1809329,66677.0,66676.0,0.005973]
[1722318586122,1.1166329,66677.0,66676.0,0.005973]
[1722318586321,0.87671353,66677.0,66676.0,0.005973]
[1722318586728,1.11667553,66677.0,66676.0,0.005973]
[1722318587705,1.24341349,66677.0,66676.0,0.005973]
[1722318587909,0.87671353,66677.0,66676.0,0.005973]
[1722318588189,0.87671353,66677.0,66676.0,0.083973]
[1722318588392,1.11667553,66677.0,66676.0,0.083973]
[1722318588594,1.25054698,66677.0,66676.0,0.083973]
[1722318588795,1.06744898,66677.0,66676.0,0.083973]
[1722318589419,1.09861707,66677.0,66676.0,0.005973]
[1722318589649,1.14814035,66677.0,66676.0,0.005973]
[1722318590036,1.14823977,66677.0,66676.0,0.005973]
[1722318590565,1.01098257,66677.0,66676.0,0.005973]
[1722318590881,1.01098285,66677.0,66676.0,0.005973]
[1722318591084,0.87710968,66677.0,66676.0,0.005973]
[1722318591606,1.01094128,66677.0,66676.0,0.005973]
[1722318591807,1.01080708,66677.0,66676.0,0.005973]
[1722318592112,0.87699161,66677.0,66676.0,0.005973]
[1722318592911,0.87698971,66677.0,66676.0,0.005973]
[1722318593086,1.13763582,66677.0,66676.0,0.005973]
[1722318593441,1.137643,66677.0,66676.0,0.005973]
[1722318593566,1.00382171,66677.0,66676.0,0.005973]
[1722318594517,1.01084009,66677.0,66676.0,0.005973]
[1722318594764,0.87698971,66677.0,66676.0,0.005973]
[1722318596156,0.87716624,66677.0,66676.0,0.005973]
[1722318597524,1.11712824,66677.0,66676.0,0.005973]
[1722318597723,0.87716624,66677.0,66676.0,0.005973]
[1722318599359,0.82748698,66677.0,66676.0,0.005973]
[1722318599579,0.99915139,66677.0,66676.0,0.005973]
[1722318599776,0.94937968,66677.0,66676.0,0.005973]
[1722318599924,1.23911186,66677.0,66676.0,0.005973]
[1722318600672,1.39341186,66677.0,66676.0,0.005973]